fUSD/lending_fUSD_20240428
["ID","MTS","AMOUNT","RATE_DAILY","PERIOD"]
[44160,1714331569114,-1049.2,0.00015616,2]
[44161,1714331569124,-524.08,0.00015616,2]
[44162,1714331569133,-6674.97,0.00015616,2]
[44163,1714331569143,-16083.09,0.00015616,2]
[44164,1714331569152,-723.16,0.00015616,2]
[44165,1714331569161,-761.59,0.00015616,2]
[44166,1714331569170,-1549.43,0.00015616,2]
[44167,1714331569180,-1266.3,0.00015616,2]
[44168,1714331569189,-951.73,0.00015616,2]
[44169,1714331569198,-1185.86,0.00015616,2]
[44170,1714331569207,-8626.56,0.00015616,2]
[44171,1714331569217,-2988.7,0.00015616,2]
[44172,1714331569226,-1057.63,0.00015616,2]
[44173,1714331569236,-619.85,0.00015616,2]
[44174,1714331569245,-766.16,0.00015616,2]
[44175,1714331569254,-1206.57,0.00015616,2]
[44176,1714331569263,-1600.41,0.00015616,2]
[44177,1714331569273,-526.35,0.00015616,2]
[44178,1714331569282,-3105.73,0.00015616,2]
[44179,1714331569291,-1174.3,0.00015616,2]
[44181,1714331569310,-1939.82,0.00015616,2]
[44183,1714331569328,-566.88,0.00015616,2]
[44185,1714331569348,-2494.32,0.00015616,2]
[44187,1714331569367,-736.62,0.00015616,2]
[44189,1714331569388,-3862.59,0.00015616,2]
[44191,1714331569407,-1242.16,0.00015616,2]
[44193,1714331569427,-2897.29,0.00015616,2]
[44195,1714331569445,-640.18,0.00015616,2]
[44197,1714331569464,-1288.39,0.00015616,2]
[44199,1714331569483,-1538.14,0.00015616,2]
[44201,1714331569502,-529.13,0.00015616,2]
[44203,1714331569521,-500.0,0.00015616,2]
[44205,1714331569539,-765.55,0.00015616,2]
[44207,1714331569559,-1086.25,0.00015616,2]
[44209,1714331569577,-673.0,0.00015617,2]
[44211,1714331569596,-150.0,0.00015643,2]
[44213,1714331569614,-150.0,0.00015746,2]
[44215,1714331569633,-28761.59813632,0.0001579,2]
[44217,1714331569651,-150.0,0.00015814,2]
[44219,1714331569669,-328.71506121,0.00015856,2]
[44221,1714331569688,-2500.0,0.00015876,2]
[44223,1714331569705,-150.0,0.00015885,2]
[44225,1714331569723,-625.22,0.0001589,2]
[44227,1714331569741,-500.0,0.0001589,2]
[44229,1714331569759,-529.75,0.0001589,2]
[44231,1714331569777,-597.62,0.0001589,2]
[44233,1714331569795,-556.86,0.0001589,2]
[44235,1714331569813,-503.88,0.0001589,2]
[44237,1714331569831,-708.28,0.0001589,2]
[44239,1714331569850,-500.0,0.0001589,2]
[44241,1714331569869,-500.0,0.0001589,2]
[44243,1714331569890,-584.81,0.0001589,2]
[44244,1714331569900,-500.0,0.0001589,2]
[44245,1714331569910,-638.09,0.0001589,2]
[44246,1714331569919,-500.0,0.0001589,2]
[44247,1714331569928,-649.78,0.0001589,2]
[44248,1714331569937,-500.0,0.0001589,2]
[44249,1714331569946,-550.86,0.0001589,2]
[44250,1714331569955,-500.0,0.0001589,2]
[44251,1714331569964,-681.2,0.0001589,2]
[44252,1714331569974,-652.17,0.0001589,2]
[44253,1714331569983,-666.44,0.0001589,2]
[44254,1714331569992,-712.36,0.0001589,2]
[44255,1714331570002,-500.0,0.0001589,2]
[44256,1714331570011,-566.45,0.0001589,2]
[44257,1714331570020,-514.37,0.0001589,2]
[44258,1714331570030,-583.37,0.0001589,2]
[44259,1714331570039,-770.94,0.0001589,2]
[44260,1714331570048,-500.0,0.0001589,2]
[44261,1714331570058,-500.0,0.0001589,2]
[44262,1714331570067,-500.0,0.0001589,2]
[44263,1714331570076,-596.99,0.0001589,2]
[44264,1714331570086,-1224.58,0.0001589,2]
[44265,1714331570096,-574.66,0.0001589,2]
[44266,1714331570106,-1272.33,0.0001589,2]
[44267,1714331570115,-624.41,0.0001589,2]
[44268,1714331570124,-523.16,0.0001589,2]
[44269,1714331570135,-557.05,0.0001589,2]
[44270,1714331570144,-500.0,0.0001589,2]
[44271,1714331570154,-678.48,0.0001589,2]
[44272,1714331570163,-500.0,0.0001589,2]
[44273,1714331570173,-801.46,0.0001589,2]
[44274,1714331570182,-533.0,0.0001589,2]
[44275,1714331570192,-649.51,0.0001589,2]
[44276,1714331570201,-899.28,0.0001589,2]
[44277,1714331570211,-500.0,0.0001589,2]
[44279,1714331570230,-500.0,0.0001589,2]
[44280,1714331570239,-500.0,0.0001589,2]
[44281,1714331570248,-1142.31,0.0001589,2]
[44282,1714331570258,-500.0,0.0001589,2]
[44283,1714331570268,-581.74,0.0001589,2]
[44285,1714331570286,-618.36,0.0001589,2]
[44287,1714331570304,-629.85,0.0001589,2]
[44289,1714331570323,-507.09,0.0001589,2]
[44291,1714331570341,-1106.8,0.0001589,2]
[44293,1714331570360,-668.56,0.0001589,2]
[44295,1714331570384,-711.18,0.0001589,2]
[44297,1714331570403,-565.5,0.0001589,2]
[44299,1714331570422,-1218.59,0.0001589,2]
[44301,1714331570442,-666.45,0.0001589,2]
[44303,1714331570463,-1577.52,0.0001589,2]
[44305,1714331570483,-728.71,0.0001589,2]
[44307,1714331570502,-615.66,0.0001589,2]
[44309,1714331570522,-542.89,0.0001589,2]
[44311,1714331570541,-1308.96,0.0001589,2]
[44313,1714331570561,-815.56,0.0001589,2]
[44315,1714331570579,-920.36,0.0001589,2]
[44316,1714331570588,-645.92,0.0001589,2]
[44317,1714331570597,-500.0,0.0001589,2]
[44319,1714331570616,-623.57,0.0001589,2]
[44321,1714331570636,-652.17,0.0001589,2]
[44323,1714331570655,-500.0,0.0001589,2]
[44325,1714331570674,-1176.19,0.0001589,2]
[44326,1714331570683,-535.83,0.0001589,2]
[44327,1714331570692,-500.0,0.0001589,2]
[44328,1714331570702,-581.86,0.0001589,2]
[44329,1714331570711,-608.78,0.0001589,2]
[44331,1714331570731,-710.87,0.0001589,2]
[44333,1714331570751,-500.0,0.0001589,2]
[44335,1714331570770,-725.07,0.0001589,2]
[44337,1714331570790,-500.0,0.0001589,2]
[44339,1714331570809,-625.09,0.0001589,2]
[44341,1714331570827,-726.49,0.0001589,2]
[44343,1714331570847,-540.78,0.0001589,2]
[44345,1714331570866,-698.54,0.0001589,2]
[44347,1714331570886,-682.92,0.0001589,2]
[44349,1714331570906,-1031.24,0.0001589,2]
[44351,1714331570925,-628.44,0.0001589,2]
[44353,1714331570946,-807.65,0.0001589,2]
[44355,1714331570965,-721.68,0.0001589,2]
[44356,1714331570975,-500.0,0.0001589,2]
[44357,1714331570985,-500.0,0.0001589,2]
[44358,1714331570995,-607.06,0.0001589,2]
[44359,1714331571005,-548.62,0.0001589,2]
[44360,1714331571015,-646.9,0.0001589,2]
[44361,1714331571024,-559.54,0.0001589,2]
[44362,1714331571034,-588.44,0.0001589,2]
[44363,1714331571044,-998.15,0.0001589,2]
[44364,1714331571054,-556.97,0.0001589,2]
[44365,1714331571064,-627.25,0.0001589,2]
[44366,1714331571074,-573.36,0.0001589,2]
[44367,1714331571084,-888.38,0.0001589,2]
[44369,1714331571104,-565.43,0.0001589,2]
[44371,1714331571123,-700.29,0.0001589,2]
[44373,1714331571142,-544.68,0.0001589,2]
[44375,1714331571162,-500.0,0.0001589,2]
[44377,1714331571181,-500.0,0.0001589,2]
[44379,1714331571200,-336.77322232,0.0001589,2]
[44381,1714331571219,-500.0,0.0001589,2]
[44383,1714331571237,-765.39,0.0001589,2]
[44385,1714331571256,-979.76,0.0001589,2]
[44387,1714331571275,-662.94,0.0001589,2]
[44389,1714331571294,-551.42,0.0001589,2]
[44391,1714331571313,-511.71,0.0001589,2]
[44393,1714331571332,-913.43,0.0001589,2]
[44395,1714331571352,-540.89,0.0001589,2]
[44397,1714331571372,-577.63,0.0001589,2]
[44399,1714331571396,-500.0,0.0001589,2]
[44401,1714331571415,-500.0,0.0001589,2]
[44403,1714331571435,-500.0,0.0001589,2]
[44405,1714331571459,-464.62523894,0.0001589,2]
[44406,1714331571469,-595.66,0.0001589,2]
[44407,1714331571479,-538.0,0.0001589,2]
[44408,1714331571488,-781.66,0.0001589,2]
[44409,1714331571498,-551.04,0.0001589,2]
[44410,1714331571507,-604.53,0.0001589,2]
[44411,1714331571518,-500.0,0.0001589,2]
[44412,1714331571528,-383.63,0.0001589,2]
[44413,1714331571538,-768.34,0.0001589,2]
[44414,1714331571549,-531.88,0.0001589,2]
[44415,1714331571559,-1007.48,0.0001589,2]
[44417,1714331571579,-532.51,0.0001589,2]
[44419,1714331571601,-986.84,0.0001589,2]
[44421,1714331571623,-625.85,0.0001589,2]
[44422,1714331571634,-805.9,0.0001589,2]
[44423,1714331571646,-1026.14,0.0001589,2]
[44424,1714331571657,-1489.77,0.0001589,2]
[44425,1714331571668,-772.53,0.0001589,2]
[44426,1714331571679,-622.52,0.0001589,2]
[44427,1714331571689,-1492.28,0.0001589,2]
[44428,1714331571700,-181.39368972,0.0001589,2]
[44429,1714331571710,-2487.11,0.0001589,2]
[44431,1714331571731,-979.15,0.0001589,2]
[44433,1714331571753,-513.23,0.0001589,2]
[44435,1714331571774,-500.0,0.0001589,2]
[44437,1714331571795,-1511.1,0.0001589,2]
[44439,1714331571816,-753.04,0.0001589,2]
[44441,1714331571837,-371.3495568,0.0001589,2]
[44443,1714331571858,-729.6,0.0001589,2]
[44445,1714331571878,-305.10914692,0.0001589,2]
[44447,1714331571900,-1439.12,0.0001589,2]
[44449,1714331571920,-768.05,0.0001589,2]
[44451,1714331571942,-726.91,0.0001589,2]
[44453,1714331571962,-555.89,0.0001589,2]
[44455,1714331571983,-502.88,0.0001589,2]
[44457,1714331572003,-1369.84,0.0001589,2]
[44459,1714331572023,-2951.91,0.0001589,2]
[44461,1714331572042,-1806.02,0.0001589,2]
[44463,1714331572063,-782.34,0.0001589,2]
[44465,1714331572082,-8529.27,0.0001589,2]
[44466,1714331572092,-500.0,0.0001589,2]
[44467,1714331572103,-925.51,0.0001589,2]
[44469,1714331572124,-5159.18,0.0001589,2]
[44470,1714331572134,-2107.3,0.0001589,2]
[44471,1714331572144,-863.14,0.0001589,2]
[44472,1714331572155,-1434.31,0.0001589,2]
[44473,1714331572165,-925.79,0.0001589,2]
[44474,1714331572175,-1145.96,0.0001589,2]
[44475,1714331572185,-674.92,0.0001589,2]
[44476,1714331572195,-823.49,0.0001589,2]
[44477,1714331572206,-4341.09,0.0001589,2]
[44478,1714331572216,-2859.93,0.0001589,2]
[44479,1714331572226,-500.0,0.0001589,2]
[44480,1714331572237,-632.02,0.0001589,2]
[44481,1714331572246,-1251.88,0.0001589,2]
[44482,1714331572256,-1301.64,0.0001589,2]
[44483,1714331572265,-982.93,0.0001589,2]
[44484,1714331572275,-1459.2,0.0001589,2]
[44485,1714331572285,-559.47,0.0001589,2]
[44487,1714331572304,-558.43,0.0001589,2]
[44489,1714331572324,-3164.21,0.0001589,2]
[44491,1714331572344,-760.17,0.0001589,2]
[44493,1714331572366,-2951.22,0.0001589,2]
[44495,1714331572392,-856.74,0.0001589,2]
[44497,1714331572412,-586.66,0.0001589,2]
[44499,1714331572433,-625.97,0.0001589,2]
[44501,1714331572452,-1754.95,0.0001589,2]
[44503,1714331572475,-774.93,0.0001589,2]
[44505,1714331572495,-534.65,0.0001589,2]
[44507,1714331572520,-956.53,0.0001589,2]
[44509,1714331572541,-1308.4,0.0001589,2]
[44511,1714331572563,-694.2,0.0001589,2]
[44513,1714331572584,-1112.97,0.0001589,2]
[44515,1714331572604,-500.0,0.0001589,2]
[44517,1714331572627,-1316.95,0.0001589,2]
[44519,1714331572650,-747.92,0.0001589,2]
[44521,1714331572671,-600.34,0.0001589,2]
[44523,1714331572691,-995.48,0.0001589,2]
[44525,1714331572711,-829.71,0.0001589,2]
[44527,1714331572732,-579.0,0.0001589,2]
[44529,1714331572753,-3800.95,0.0001589,2]
[44530,1714331572764,-509.12,0.0001589,2]
[44531,1714331572774,-2169.37,0.0001589,2]
[44532,1714331572785,-500.0,0.0001589,2]
[44533,1714331572794,-531.05,0.0001589,2]
[44534,1714331572804,-2292.13,0.0001589,2]
[44535,1714331572817,-894.45,0.0001589,2]
[44536,1714331572828,-11916.14,0.0001589,2]
[44537,1714331572838,-706.5,0.0001589,2]
[44538,1714331572848,-774.47,0.0001589,2]
[44539,1714331572858,-4212.02,0.0001589,2]
[44540,1714331572868,-1489.82,0.0001589,2]
[44541,1714331572878,-973.0,0.0001589,2]
[44543,1714331572898,-672.42,0.0001589,2]
[44545,1714331572918,-1242.59,0.0001589,2]
[44547,1714331572938,-1401.31,0.0001589,2]
[44549,1714331572958,-917.33,0.0001589,2]
[44551,1714331572977,-977.7,0.0001589,2]
[44553,1714331572996,-524.08,0.0001589,2]
[44555,1714331573016,-16083.09,0.0001589,2]
[44557,1714331573036,-761.59,0.0001589,2]
[44559,1714331573056,-1266.3,0.0001589,2]
[44561,1714331573076,-1185.86,0.0001589,2]
[44562,1714331573086,-8626.56,0.0001589,2]
[44563,1714331573097,-2988.7,0.0001589,2]
[44565,1714331573117,-619.85,0.0001589,2]
[44566,1714331573128,-766.16,0.0001589,2]
[44567,1714331573137,-1206.57,0.0001589,2]
[44569,1714331573157,-526.35,0.0001589,2]
[44571,1714331573178,-1174.3,0.0001589,2]
[44573,1714331573199,-1939.82,0.0001589,2]
[44575,1714331573219,-566.88,0.0001589,2]
[44577,1714331573239,-2494.32,0.0001589,2]
[44579,1714331573258,-736.62,0.0001589,2]
[44580,1714331573268,-2736.52,0.0001589,2]
[44581,1714331573278,-3862.59,0.0001589,2]
[44582,1714331573288,-2923.81,0.0001589,2]
[44583,1714331573298,-1242.16,0.0001589,2]
[44584,1714331573308,-678.26,0.0001589,2]
[44585,1714331573549,-2897.29,0.0001589,2]
[44587,1714331573603,-640.18,0.0001589,2]
[44589,1714331573623,-1288.39,0.0001589,2]
[44591,1714331573644,-1538.14,0.0001589,2]
[44593,1714331573668,-5719.97,0.0001589,2]
[44595,1714331573688,-500.0,0.0001589,2]
[44597,1714331573709,-765.55,0.0001589,2]
[44599,1714331573729,-1086.25,0.0001589,2]
[44601,1714331573750,-201.0,0.0001595,2]
[44603,1714331573773,-150.0,0.00015985,2]
[44605,1714331573794,-2000.0,0.0001601,2]
[44607,1714331573814,-150.0,0.00016025,2]
[44609,1714331573833,-328.71506121,0.00016039,2]
[44611,1714331573854,-328.71506121,0.0001613,2]
[44613,1714331573873,-625.22,0.00016164,2]
[44615,1714331573894,-500.0,0.00016164,2]
[44616,1714331573904,-607.32,0.00016164,2]
[44617,1714331573914,-529.75,0.00016164,2]
[44618,1714331573923,-500.0,0.00016164,2]
[44619,1714331573932,-597.62,0.00016164,2]
[44620,1714331573942,-744.02,0.00016164,2]
[44621,1714331573952,-556.86,0.00016164,2]
[44623,1714331573971,-503.88,0.00016164,2]
[44624,1714331573981,-610.03,0.00016164,2]
[44625,1714331573991,-708.28,0.00016164,2]
[44626,1714331574000,-588.27,0.00016164,2]
[44627,1714331574009,-500.0,0.00016164,2]
[44628,1714331574018,-500.0,0.00016164,2]
[44629,1714331574028,-500.0,0.00016164,2]
[44630,1714331574037,-546.92,0.00016164,2]
[44631,1714331574047,-584.81,0.00016164,2]
[44632,1714331574057,-500.0,0.00016164,2]
[44633,1714331574066,-638.09,0.00016164,2]
[44635,1714331574085,-649.78,0.00016164,2]
[44637,1714331574104,-550.86,0.00016164,2]
[44639,1714331574123,-681.2,0.00016164,2]
[44641,1714331574142,-666.44,0.00016164,2]
[44643,1714331574161,-500.0,0.00016164,2]
[44645,1714331574179,-514.37,0.00016164,2]
[44647,1714331574199,-770.94,0.00016164,2]
[44649,1714331574218,-500.0,0.00016164,2]
[44651,1714331574237,-596.99,0.00016164,2]
[44652,1714331574246,-1224.58,0.00016164,2]
[44653,1714331574255,-574.66,0.00016164,2]
[44655,1714331574274,-624.41,0.00016164,2]
[44657,1714331574294,-557.05,0.00016164,2]
[44658,1714331574304,-500.0,0.00016164,2]
[44659,1714331574314,-678.48,0.00016164,2]
[44661,1714331574334,-801.46,0.00016164,2]
[44663,1714331574354,-649.51,0.00016164,2]
[44664,1714331574363,-899.28,0.00016164,2]
[44665,1714331574375,-500.0,0.00016164,2]
[44666,1714331574387,-500.0,0.00016164,2]
[44667,1714331574396,-500.0,0.00016164,2]
[44668,1714331574406,-1142.31,0.00016164,2]
[44669,1714331574418,-500.0,0.00016164,2]
[44670,1714331574428,-581.74,0.00016164,2]
[44671,1714331574438,-606.2,0.00016164,2]
[44672,1714331574447,-618.36,0.00016164,2]
[44673,1714331574457,-783.25,0.00016164,2]
[44675,1714331574477,-816.26,0.00016164,2]
[44677,1714331574496,-891.97,0.00016164,2]
[44678,1714331574506,-1106.8,0.00016164,2]
[44679,1714331574515,-527.72,0.00016164,2]
[44680,1714331574524,-668.56,0.00016164,2]
[44681,1714331574534,-788.51,0.00016164,2]
[44683,1714331574553,-513.17,0.00016164,2]
[44684,1714331574564,-565.5,0.00016164,2]
[44685,1714331574575,-1610.42,0.00016164,2]
[44687,1714331574594,-500.0,0.00016164,2]
[44689,1714331574615,-513.55,0.00016164,2]
[44690,1714331574626,-1577.52,0.00016164,2]
[44691,1714331574636,-643.86,0.00016164,2]
[44692,1714331574645,-728.71,0.00016164,2]
[44693,1714331574655,-803.65,0.00016164,2]
[44694,1714331574664,-615.66,0.00016164,2]
[44695,1714331574674,-575.03,0.00016164,2]
[44696,1714331574683,-542.89,0.00016164,2]
[44697,1714331574693,-538.42,0.00016164,2]
[44698,1714331574703,-1308.96,0.00016164,2]
[44699,1714331574712,-772.95,0.00016164,2]
[44701,1714331574731,-513.25,0.00016164,2]
[44702,1714331574740,-920.36,0.00016164,2]
[44703,1714331574750,-645.92,0.00016164,2]
[44704,1714331574759,-500.0,0.00016164,2]
[44705,1714331574769,-592.76,0.00016164,2]
[44706,1714331574778,-623.57,0.00016164,2]
[44707,1714331574787,-765.46,0.00016164,2]
[44708,1714331574797,-652.17,0.00016164,2]
[44709,1714331574807,-585.78,0.00016164,2]
[44710,1714331574816,-500.0,0.00016164,2]
[44711,1714331574826,-519.38,0.00016164,2]
[44713,1714331574845,-535.83,0.00016164,2]
[44715,1714331574864,-581.86,0.00016164,2]
[44716,1714331574873,-608.78,0.00016164,2]
[44717,1714331574882,-640.22,0.00016164,2]
[44718,1714331574892,-710.87,0.00016164,2]
[44719,1714331574901,-500.0,0.00016164,2]
[44720,1714331574910,-500.0,0.00016164,2]
[44721,1714331574920,-810.35,0.00016164,2]
[44723,1714331574940,-544.86,0.00016164,2]
[44725,1714331574959,-500.0,0.00016164,2]
[44727,1714331574978,-704.75,0.00016164,2]
[44729,1714331574997,-540.78,0.00016164,2]
[44731,1714331575017,-698.54,0.00016164,2]
[44733,1714331575037,-682.92,0.00016164,2]
[44735,1714331575056,-1031.24,0.00016164,2]
[44737,1714331575075,-628.44,0.00016164,2]
[44739,1714331575095,-561.86,0.00016164,2]
[44741,1714331575115,-500.0,0.00016164,2]
[44742,1714331575125,-500.0,0.00016164,2]
[44743,1714331575135,-607.06,0.00016164,2]
[44744,1714331575145,-646.9,0.00016164,2]
[44745,1714331575154,-559.54,0.00016164,2]
[44747,1714331575174,-998.15,0.00016164,2]
[44749,1714331575193,-627.25,0.00016164,2]
[44751,1714331575212,-888.38,0.00016164,2]
[44753,1714331575231,-565.43,0.00016164,2]
[44755,1714331575250,-700.29,0.00016164,2]
[44757,1714331575269,-544.68,0.00016164,2]
[44759,1714331575287,-500.0,0.00016164,2]
[44761,1714331575306,-500.0,0.00016164,2]
[44762,1714331575316,-708.42,0.00016164,2]
[44763,1714331575325,-500.0,0.00016164,2]
[44765,1714331575343,-520.06,0.00016164,2]
[44767,1714331575362,-510.54,0.00016164,2]
[44769,1714331575383,-801.75,0.00016164,2]
[44770,1714331575395,-662.94,0.00016164,2]
[44771,1714331575404,-906.44,0.00016164,2]
[44772,1714331575414,-551.42,0.00016164,2]
[44773,1714331575425,-837.85,0.00016164,2]
[44775,1714331575444,-637.88178781,0.00016164,2]
[44777,1714331575465,-536.2,0.00016164,2]
[44779,1714331575487,-217.80309883,0.00016164,2]
[44781,1714331575509,-717.54,0.00016164,2]
[44783,1714331575530,-194.86492671,0.00016164,2]
[44785,1714331575550,-500.0,0.00016164,2]
[44787,1714331575572,-996.75,0.00016164,2]
[44789,1714331575594,-538.0,0.00016164,2]
[44791,1714331575615,-551.04,0.00016164,2]
[44793,1714331575636,-594.48012851,0.00016164,2]
[44795,1714331575657,-768.34,0.00016164,2]
[44797,1714331575678,-1007.48,0.00016164,2]
[44799,1714331575702,-532.51,0.00016164,2]
[44801,1714331575722,-986.84,0.00016164,2]
[44803,1714331575743,-625.85,0.00016164,2]
[44805,1714331575763,-1026.14,0.00016164,2]
[44807,1714331575782,-772.53,0.00016164,2]
[44809,1714331575800,-1492.28,0.00016164,2]
[44811,1714331575822,-1102.77,0.00016164,2]
[44813,1714331575843,-2683.52,0.00016164,2]
[44815,1714331575867,-500.0,0.00016164,2]
[44817,1714331575887,-1511.1,0.00016164,2]
[44818,1714331575896,-1126.91,0.00016164,2]
[44819,1714331575906,-757.63,0.00016164,2]
[44821,1714331575927,-768.45,0.00016164,2]
[44823,1714331575947,-729.6,0.00016164,2]
[44825,1714331576053,-560.22,0.00016164,2]
[44827,1714331576074,-2375.71,0.00016164,2]
[44829,1714331576095,-768.05,0.00016164,2]
[44831,1714331576113,-1119.03,0.00016164,2]
[44833,1714331576132,-1829.87,0.00016164,2]
[44835,1714331576151,-555.53,0.00016164,2]
[44837,1714331576169,-1950.72,0.00016164,2]
[44839,1714331576189,-502.86,0.00016164,2]
[44841,1714331576207,-1573.76,0.00016164,2]
[44843,1714331576228,-16629.27,0.00016164,2]
[44845,1714331576248,-500.0,0.00016164,2]
[44846,1714331576257,-925.51,0.00016164,2]
[44847,1714331576268,-850.01,0.00016164,2]
[44849,1714331576288,-2107.3,0.00016164,2]
[44851,1714331576308,-1434.31,0.00016164,2]
[44853,1714331576327,-1145.96,0.00016164,2]
[44855,1714331576349,-823.49,0.00016164,2]
[44857,1714331576368,-2859.93,0.00016164,2]
[44859,1714331576390,-632.02,0.00016164,2]
[44861,1714331576413,-1301.64,0.00016164,2]
[44863,1714331576433,-1459.2,0.00016164,2]
[44865,1714331576451,-900.56,0.00016164,2]
[44867,1714331576473,-500.0,0.00016164,2]
[44869,1714331576494,-870.22,0.00016164,2]
[44871,1714331576512,-812.36,0.00016164,2]
[44873,1714331576532,-1319.84,0.00016164,2]
[44875,1714331576551,-532.65,0.00016164,2]
[44877,1714331576568,-506.42,0.00016164,2]
[44879,1714331576587,-5810.04,0.00016164,2]
[44881,1714331576606,-1243.71,0.00016164,2]
[44883,1714331576624,-11529.36,0.00016164,2]
[44885,1714331576643,-2615.87,0.00016164,2]
[44887,1714331576661,-813.94,0.00016164,2]
[44888,1714331576670,-1308.4,0.00016164,2]
[44889,1714331576680,-903.91,0.00016164,2]
[44891,1714331576698,-1550.17,0.00016164,2]
[44893,1714331576716,-613.08,0.00016164,2]
[44895,1714331576734,-565.24,0.00016164,2]
[44897,1714331576752,-1711.83,0.00016164,2]
[44898,1714331576762,-747.92,0.00016164,2]
[44899,1714331576771,-1211.25,0.00016164,2]
[44901,1714331576792,-1062.05,0.00016164,2]
[44903,1714331576811,-621.01481961,0.00016164,2]
[44905,1714331576829,-938.89,0.00016164,2]
[44907,1714331576848,-500.0,0.00016164,2]
[44908,1714331576857,-3800.95,0.00016164,2]
[44909,1714331576867,-509.12,0.00016164,2]
[44910,1714331576876,-2169.37,0.00016164,2]
[44911,1714331576886,-531.05,0.00016164,2]
[44913,1714331576904,-2292.13,0.00016164,2]
[44915,1714331576922,-11916.14,0.00016164,2]
[44917,1714331576940,-774.47,0.00016164,2]
[44919,1714331576959,-1489.82,0.00016164,2]
[44921,1714331576977,-1126.83,0.00016164,2]
[44923,1714331576996,-5235.42,0.00016164,2]
[44925,1714331577014,-629.68459503,0.00016164,2]
[44927,1714331577033,-1138.49,0.00016164,2]
[44929,1714331577051,-860.55,0.00016164,2]
[44931,1714331577069,-1049.2,0.00016164,2]
[44933,1714331577088,-6674.97,0.00016164,2]
[44934,1714331577097,-16083.09,0.00016164,2]
[44935,1714331577107,-723.16,0.00016164,2]
[44937,1714331577126,-1549.43,0.00016164,2]
[44939,1714331577144,-951.73,0.00016164,2]